fUST/lending_fUST_20241105
["ID","MTS","AMOUNT","RATE_DAILY","PERIOD"]
[341270580,1730736224289,172.315258,0.00013973,2]
[341270581,1730736367428,150.0,0.0002,2]
[341270582,1730736367891,150.0,0.00017,2]
[341270583,1730736368337,150.0,0.00014,2]
[341270584,1730736368808,150.0,0.00011,2]
[341270585,1730736369365,150.0,8e-05,2]
[341270586,1730736403262,-159.601997,0.00021661,2]
[341270587,1730736403284,-150.0,0.00022,2]
[341270588,1730736403304,-150.0,0.00022,30]
[341270589,1730736403325,-150.0,0.00025,2]
[341270590,1730736403346,-821.6059629,0.00025699,2]
[341270591,1730736403366,-380.0,0.00025699,2]
[341270592,1730736403386,-159.0,0.00027,2]
[341270593,1730736403406,-150.0,0.00027,30]
[341270594,1730736403427,-175.647747,0.00027156,2]
[341270595,1730736403447,-152.4275423,0.00027169,2]
[341270596,1730736447100,-159.0,0.00027,2]
[341270597,1730736447123,-1168.458372,0.00027169,2]
[341270598,1730736447144,-171.16007024,0.00027255,2]
[341270599,1730736447166,-3324.12663275,0.000273,2]
[341270600,1730736561112,-161.898833,0.00026008,2]
[341270601,1730736593210,1502.61191976,0.00020188,2]
[341270602,1730736593231,182.24792656,0.00020188,2]
[341270603,1730736593253,250.69021795,0.00020188,2]
[341270604,1730736593288,3064.44993573,0.00020188,2]
[341270605,1730736601174,5000.0,0.00020188,2]
[341270606,1730736609792,5000.0,0.00020188,2]
[341270607,1730736617777,5000.0,0.00020188,2]
[341270608,1730736625733,5000.0,0.00020188,2]
[341270648,1730736631879,-250.0,0.00026254,2]
[341270650,1730736631888,-246.703337,0.00026369,2]
[341270652,1730736631898,-374.705879,0.00026519,2]
[341270654,1730736631908,-331.8736744,0.00026601,2]
[341270656,1730736631918,-159.0,0.00027,2]
[341270658,1730736631928,-179.3836567,0.00027783,2]
[341270660,1730736631937,-300.0,0.00027952,2]
[341270662,1730736631948,-300.0,0.00027952,2]
[341270664,1730736631957,-500.0,0.00027953,2]
[341270666,1730736631966,-500.0,0.00027953,2]
[341270668,1730736631975,-274.96222103,0.00027953,2]
[341270670,1730736631984,-232.73306305,0.00027953,2]
[341270672,1730736631993,-1141.20096857,0.00027954,2]
[341270674,1730736632005,-398.09665254,0.00027954,2]
[341270675,1730736632016,-3436.7455365,0.00027954,2]
[341270921,1730736634531,577.8215716,0.00020188,2]
[341271298,1730736638191,-2731.33967525,0.00027954,2]
[341271300,1730736638207,-1405.29436376,0.00027954,2]
[341271827,1730736643066,-500.0,0.00027953,2]
[341271829,1730736643075,-3.69161932,0.00027953,2]
[341272526,1730736650465,1505.11894781,0.00020188,2]
[341272529,1730736650492,3494.88105219,0.00020188,2]
[341273297,1730736658251,5000.0,0.00020188,2]
[341274591,1730736673429,5000.0,0.00020188,2]
[341274611,1730736677056,185.692,0.00015553,2]
[341274612,1730736688740,618.13892964,0.00020188,2]
[341274613,1730736747002,169.6152,0.00013973,2]
[341274614,1730736748976,187.215,0.00015656,2]
[341275040,1730736922252,4235.46428296,0.00020188,2]
[341275045,1730737282837,163.050532,0.00013973,2]
[341275047,1730737397589,10017.8774704,0.0001,2]
[341275049,1730737538711,152.20842577,0.0002,2]
[341275051,1730737642145,-169.6152,0.00020447,2]
[341275052,1730737642166,-170.60772,0.00024087,2]
[341275053,1730737642188,-166.666666,0.00024125,2]
[341275054,1730737642209,-3000.0,0.00024328,2]
[341275055,1730737642229,-362.329285,0.00024461,2]
[341275056,1730737642252,-573.77252302,0.00024552,2]
[341275057,1730737642464,-228.67858818,0.00024552,2]
[341275058,1730737642486,-169.475588,0.00024783,2]
[341275059,1730737642508,-302.78807257,0.00025,2]
[341275060,1730737642530,-302.78807257,0.0002525,2]
[341275061,1730737642552,-174.17835161,0.0002549,2]
[341275062,1730737642573,-151.757273,0.000255,2]
[341275063,1730737642596,-787.26186698,0.0002559,2]
[341275064,1730737642619,-2161.52059241,0.00026169,2]
[341275065,1730737642642,-300.0,0.00026205,2]
[341275066,1730737642664,-300.0,0.00026206,2]
[341275067,1730737642685,-341.77768612,0.00026207,2]
[341275068,1730737642710,-500.0,0.00026207,2]
[341275069,1730737642732,-500.0,0.00026207,2]
[341275070,1730737642757,-622.79847508,0.00026207,2]
[341275071,1730737642779,-274.96222103,0.00026207,2]
[341275072,1730737642946,-24900.0,0.00026208,2]
[341275073,1730737642970,-945.71264824,0.00026269,2]
[341275074,1730737642994,-481.11309335,0.00026869,2]
[341275075,1730737643016,-194.3898219,0.000269,2]
[341275076,1730737643039,-169.6152,0.00026921,2]
[341275077,1730737643061,-165.0,0.00027,2]
[341275078,1730737643085,-168.573,0.00027609,17]
[341275079,1730737643108,-176.81905718,0.00027631,2]
[341275080,1730737643131,-12514.9886081,0.00027632,2]
[341275081,1730737643154,-529.74975962,0.00027632,2]
[341275082,1730737643177,-161.92029299,0.000279,2]
[341275083,1730737643202,-150.0,0.00028,2]
[341275084,1730737643224,-465.80565467,0.00028213,2]
[341275085,1730737643250,-420.0,0.00028355,2]
[341275086,1730737643273,-2161.52059238,0.00028416,2]
[341275087,1730737643298,-163.696666,0.00028458,2]
[341275088,1730737643322,-163.696666,0.00028476,2]
[341275089,1730737643346,-163.696666,0.00028493,2]
[341275090,1730737643370,-163.696666,0.00028511,2]
[341275091,1730737643394,-163.696666,0.00028529,2]
[341275092,1730737643418,-163.696666,0.00028547,2]
[341275093,1730737643442,-163.696666,0.00028564,2]
[341275094,1730737643466,-163.696666,0.00028582,2]
[341275095,1730737643491,-163.696666,0.000286,2]
[341275096,1730737643514,-420.0,0.00028826,2]
[341275097,1730737643536,-465.04028273,0.00029624,2]
[341275098,1730737643558,-228.92813,0.000299,120]
[341275099,1730737643580,-201.0,0.0003,2]
[341275100,1730737643601,-303.0,0.0003,2]
[341275101,1730737643623,-201.0,0.0003,2]
[341275102,1730737643645,-162.0,0.0003,2]
[341275105,1730737702596,859.19566979,0.00029,2]
[341275106,1730737708610,188.98166332,0.0002,10]
[341275107,1730737720290,4307.53020743,0.0002066,7]
[341275108,1730737722080,23101.51642191,0.00022,30]
[341275109,1730737724357,1886.88997462,0.00020377,2]
[341275110,1730737725834,1853.34275651,0.00025,2]
[341275111,1730737726036,1321.80634628,0.0002799,2]
[341275113,1730737727566,6244.62115489,0.00028,2]
[341275116,1730737729560,811.84027416,0.00022,3]
[341275165,1730737832012,-201.0,0.00030411,2]
[341275166,1730737832023,-660.0,0.00030595,2]
[341275167,1730737832032,-400.0,0.00030678,2]
[341275168,1730737832042,-400.0,0.00030678,2]
[341275169,1730737832052,-5613.76206406,0.00030679,2]
[341275172,1730737837673,160.099451,0.00013973,2]
[341275174,1730737837910,160.099451,0.00020807,2]
[341275176,1730737838127,160.099451,0.00027641,2]
[341275209,1730737843063,-393.23304278,0.00030679,2]
[341275214,1730737846503,-18893.00489316,0.00030679,2]
[341275215,1730737846512,-150.0,0.00031,2]
[341275216,1730737846522,-156.55979133,0.00031546,2]
[341275217,1730737846534,-6.49074067,0.00031546,2]
[341275218,1730737846543,-201.0,0.00031644,2]
[341275219,1730737846553,-202.0,0.00031644,2]
[341275220,1730737846562,-157.349,0.0003177,2]
[341275221,1730737846572,-150.0,0.00032,30]
[341275222,1730737846581,-309.09841217,0.000327,14]
[341275223,1730737846592,-1621.14044432,0.00032776,2]
[341275224,1730737846601,-157.307,0.0003283,120]
[341275225,1730737846610,-353.16650642,0.00032876,7]
[341275226,1730737846619,-500.0,0.00032876,4]
[341275227,1730737846628,-500.0,0.00032876,4]
[341275228,1730737846637,-500.0,0.00032876,4]
[341275229,1730737846646,-500.0,0.00032876,4]
[341275230,1730737846655,-203.86358896,0.00032876,4]
[341275231,1730737846665,-500.0,0.00032876,4]
[341275232,1730737846674,-613.54,0.00032876,4]
[341275233,1730737846683,-500.0,0.00032876,4]
[341275234,1730737846692,-573.86135289,0.00032876,4]
[341275235,1730737846702,-500.0,0.00032876,4]
[341275236,1730737846711,-563.78,0.00032876,4]
[341275237,1730737846720,-500.0,0.00032876,4]
[341275238,1730737846730,-500.0,0.00032876,4]
[341275239,1730737846740,-500.0,0.00032876,4]
[341275240,1730737846749,-500.0,0.00032876,4]
[341275241,1730737846758,-500.0,0.00032876,4]
[341275242,1730737846767,-250.0,0.00032876,4]
[341275243,1730737846777,-500.0,0.00032876,4]
[341275244,1730737846786,-500.0,0.00032876,4]
[341275245,1730737846795,-514.79602967,0.00032876,4]
[341275246,1730737846805,-210.72,0.00032876,4]
[341275247,1730737846814,-315.91693964,0.00032876,4]
[341275248,1730737846825,-500.0,0.00032876,4]
[341275249,1730737846834,-500.0,0.00032876,2]
[341275250,1730737846843,-1027.86,0.00032876,4]
[341275251,1730737846853,-500.0,0.00032876,4]
[341275252,1730737846862,-586.64965439,0.00032876,120]
[341275253,1730737846871,-500.0,0.00032876,4]
[341275254,1730737846882,-646.90908228,0.00032876,4]
[341275255,1730737846892,-500.0,0.00032876,7]
[341275256,1730737846902,-500.0,0.00032876,4]
[341275257,1730737846912,-557.13,0.00032876,4]
[341275258,1730737846922,-500.0,0.00032876,4]
[341275259,1730737846931,-500.0,0.00032876,4]
[341275260,1730737846941,-500.0,0.00032876,4]
[341275261,1730737846951,-500.0,0.00032876,4]
[341275262,1730737846960,-501.8,0.00032876,4]
[341275263,1730737846969,-438.61,0.00032876,4]
[341275264,1730737846978,-328.09861926,0.00032876,4]
[341275265,1730737846987,-500.0,0.00032876,4]
[341275266,1730737846997,-500.0,0.00032876,4]
[341275267,1730737847006,-1052.23,0.00032876,4]
[341275268,1730737847016,-742.41,0.00032876,4]
[341275269,1730737847028,-500.0,0.00032876,4]
[341275270,1730737847037,-1487.77,0.00032876,4]
[341275271,1730737847046,-500.0,0.00032876,4]
[341275272,1730737847055,-1150.2,0.00032876,4]
[341275273,1730737847068,-500.0,0.00032876,4]
[341275274,1730737847077,-500.0,0.00032876,4]
[341275275,1730737847087,-676.18,0.00032876,4]
[341275276,1730737847096,-8481.61,0.00032876,3]
[341275277,1730737847105,-298.096299,0.00032877,120]
[341275278,1730737847115,-246.3339,0.00032984,2]
[341275279,1730737847124,-192.13951569,0.00033,14]
[341275280,1730737847133,-560.0,0.00033041,2]
[341275281,1730737847143,-3000.0,0.000331,14]
[341275282,1730737847153,-500.0,0.000331,21]
[341275283,1730737847163,-5567.193405,0.0003311,14]
[341275284,1730737847172,-726.66,0.0003314,3]
[341275285,1730737847181,-2005.28789131,0.00033149,2]
[341275286,1730737847191,-500.0,0.0003315,4]
[341275287,1730737847200,-534.77611955,0.0003315,4]
[341275288,1730737847209,-500.0,0.0003315,4]
[341275289,1730737847218,-384.39,0.0003315,4]
[341275290,1730737847227,-500.0,0.0003315,4]
[341275291,1730737847237,-563.78,0.0003315,4]
[341275292,1730737847246,-229.7379769,0.0003315,4]
[341275303,1730738139694,2162.85,0.00033667,30]
[341275304,1730738141659,162.438,0.00018258,2]
[341275308,1730738305990,176.433871,0.00028472,2]
[341275309,1730738332484,165.906727,0.00013973,2]
[341275310,1730738332731,165.906727,0.00027641,2]
[341275315,1730738586871,351.631646,0.00029062,2]
[341275316,1730738626684,168.773289,0.00028788,2]
[341275317,1730738635590,361.869387,0.00029062,2]
[341275318,1730738635933,361.869387,0.00029747,2]
[341275319,1730738684390,250.0,0.00029103,2]
[341275346,1730738763900,2502.1443581,0.0002905,2]
[341275347,1730738815282,1803.0207906,0.00029282,2]
[341275348,1730738830149,-172.18548081,0.00030372,2]
[341275349,1730738830701,176.433871,0.00028587,2]
[341275350,1730738844143,-19.79940263,0.00030372,2]
[341275351,1730738844164,-361.869387,0.00030432,2]
[341275352,1730738844192,-169.80399814,0.00030435,2]
[341275353,1730738844213,-195.53,0.00030522,2]
[341275354,1730738844237,-400.0,0.00030527,2]
[341275355,1730738844257,-400.0,0.00030527,2]
[341275356,1730738844277,-500.0,0.00030528,2]
[341275357,1730738844299,-500.0,0.00030528,2]
[341275358,1730738844320,-500.0,0.00030528,2]
[341275359,1730738844341,-500.0,0.00030528,2]
[341275360,1730738844363,-189.38044345,0.00030528,2]
[341275361,1730738844385,-500.0,0.00030528,2]
[341275362,1730738844407,-500.0,0.00030528,2]
[341275363,1730738844428,-500.0,0.00030528,2]
[341275364,1730738844449,-303.20713092,0.00030528,2]
[341275365,1730738853121,-196.79286908,0.00030528,2]
[341275366,1730738853144,-500.0,0.00030528,2]
[341275367,1730738853167,-500.0,0.00030528,2]
[341275368,1730738853189,-297.84967618,0.00030528,2]
[341275369,1730738857893,160.001317,0.00013973,2]
[341275370,1730738858110,160.001317,0.00021661,2]
[341275371,1730738858327,160.001317,0.00029349,2]
[341275372,1730738958344,24900.0,0.00028903,2]
[341275523,1730739035945,-1418.49788878,0.00030435,2]
[341275524,1730739035955,-249.02558976,0.00030532,2]
[341275525,1730739036053,-150.97441024,0.00030532,2]
[341275526,1730739036063,-400.0,0.00030532,2]
[341275527,1730739036073,-500.0,0.00030533,2]
[341275528,1730739036083,-436.67822167,0.00030533,2]
[341275529,1730739036093,-500.0,0.00030533,2]
[341275530,1730739036103,-632.47808245,0.00030533,2]
[341275531,1730739036112,-377.92236624,0.00030533,2]
[341275532,1730739036122,-500.0,0.00030533,2]
[341275533,1730739036131,-500.0,0.00030533,2]
[341275534,1730739036141,-500.0,0.00030533,2]
[341275535,1730739036150,-500.0,0.00030533,2]
[341275536,1730739036159,-500.0,0.00030533,2]
[341275537,1730739036276,-48.21812902,0.00030533,2]
[341275593,1730739038471,-594.5455176,0.00030533,2]
[341275594,1730739038481,-500.0,0.00030533,2]
[341275596,1730739038490,-244.13301863,0.00030533,2]
[341275599,1730739038500,-500.0,0.00030533,2]
[341275601,1730739038510,-577.74409411,0.00030533,2]
[341275603,1730739038520,-2511.86495294,0.00030534,2]
[341275605,1730739038529,-500.0,0.00030534,3]
[341275607,1730739038538,-428.88,0.00030534,3]
[341275608,1730739038547,-501.0,0.00030534,3]
[341275611,1730739038557,-500.0,0.00030534,3]
[341275612,1730739038566,-1008.39,0.00030534,3]
[341275615,1730739038579,-500.0,0.00030534,3]
[341275617,1730739038589,-500.0,0.00030534,3]
[341275619,1730739038598,-513.53361582,0.00030534,3]
[341275620,1730739038607,-1425.78,0.00030534,3]
[341275621,1730739038617,-500.0,0.00030534,3]
[341275622,1730739038626,-601.50978115,0.00030534,3]
[341275623,1730739038636,-500.0,0.00030534,3]
[341275624,1730739038645,-501.73030376,0.00030534,3]
[341275625,1730739038655,-500.0,0.00030808,3]
[341275626,1730739038664,-1008.39,0.00030808,3]
[341275627,1730739038676,-500.0,0.00030808,3]
[341275628,1730739038687,-164.75,0.00030808,3]
[341275629,1730739038697,-1425.78,0.00030808,3]
[341275630,1730739038706,-500.0,0.00030808,3]
[341275631,1730739038716,-1008.39,0.00031082,3]
[341275632,1730739038726,-553.04868151,0.00031082,3]
[341275633,1730739038735,-1425.78,0.00031082,3]
[341275634,1730739038745,-500.0,0.00031082,3]
[341275635,1730739038757,-1008.39,0.00031356,3]
[341275636,1730739038767,-1425.78,0.00031356,3]
[341275637,1730739038776,-500.0,0.00031356,3]
[341275638,1730739038786,-1008.39,0.0003163,3]
[341275639,1730739038795,-1425.78,0.0003163,3]
[341275640,1730739038805,-500.0,0.0003163,3]
[341275641,1730739038814,-1008.39,0.00031904,3]
[341275642,1730739038823,-1425.78,0.00031904,3]
[341275643,1730739038833,-289.47209304,0.00031904,3]
[341275644,1730739038843,-165.80283484,0.00032,2]
[341275645,1730739038853,-1418.49788874,0.00032073,2]
[341275646,1730739038863,-1008.39,0.00032178,3]
[341275647,1730739038874,-1425.78,0.00032178,3]
[341275648,1730739038883,-1008.39,0.00032452,3]
[341275649,1730739038893,-1425.78,0.00032452,3]
[341275650,1730739038902,-365.89076926,0.00032452,7]
[341275651,1730739038912,-1008.39,0.00032726,3]
[341275652,1730739038922,-1425.78,0.00032726,3]
[341275653,1730739038932,-159.812,0.0003279,30]
[341275654,1730739038942,-445.17701882,0.00032873,5]
[341275655,1730739038952,-260.54009128,0.00032873,5]
[341275656,1730739038961,-500.0,0.00032873,5]
[341275657,1730739038971,-262.71567868,0.00032873,5]
[341275658,1730739038980,-160.34341217,0.00032873,5]
[341275659,1730739038990,-500.0,0.00032873,5]
[341275660,1730739039000,-500.0,0.00032873,5]
[341275661,1730739039010,-500.56218462,0.00032873,5]
[341275662,1730739039020,-320.79967083,0.00032873,5]
[341275663,1730739039033,-496.54248582,0.00032873,5]
[341275664,1730739039043,-500.0,0.00032876,4]
[341275665,1730739039052,-500.0,0.00032876,4]
[341275666,1730739039062,-500.0,0.00032876,4]
[341275667,1730739039071,-500.0,0.00032876,4]
[341275668,1730739039081,-500.0,0.00032876,4]
[341275669,1730739039091,-250.0,0.00032876,4]
[341275670,1730739039101,-516.8,0.00032876,4]
[341275671,1730739039110,-500.0,0.00032876,4]
[341275672,1730739039119,-500.0,0.00032876,4]
[341275673,1730739039128,-500.0,0.00032876,4]
[341275674,1730739039138,-500.0,0.00032876,4]
[341275675,1730739039147,-500.0,0.00032876,4]
[341275676,1730739039157,-337.1755131,0.00032876,4]
[341275677,1730739039166,-49.59839498,0.00032876,4]
[341275678,1730739039179,-376.31299613,0.00032876,4]
[341275715,1730739040309,-74.08860889,0.00032876,4]
[341275716,1730739040318,-1102.27,0.00032876,4]
[341275717,1730739040328,-500.0,0.00032876,4]
[341275718,1730739040337,-500.0,0.00032876,4]
[341275719,1730739040348,-156.38,0.00032876,4]
[341275720,1730739040357,-500.0,0.00032876,4]
[341275721,1730739040367,-500.0,0.00032876,4]
[341275722,1730739040376,-599.88098851,0.00032876,4]
[341275723,1730739040385,-500.0,0.00032876,4]
[341275724,1730739040394,-500.0,0.00032876,4]
[341275725,1730739040404,-500.0,0.00032876,4]
[341275726,1730739040413,-500.0,0.00032876,4]
[341275727,1730739040423,-500.0,0.00032876,7]
[341275728,1730739040431,-500.0,0.00032876,4]
[341275729,1730739040441,-581.28635993,0.00032876,4]
[341275730,1730739040450,-500.0,0.00032876,4]
[341275731,1730739040459,-500.0,0.00032876,4]
[341275732,1730739040468,-500.0,0.00032876,4]
[341275733,1730739040478,-500.0,0.00032876,4]
[341275734,1730739040488,-500.0,0.00032876,4]
[341275735,1730739040497,-500.0,0.00032876,4]
[341275736,1730739040506,-500.0,0.00032876,4]
[341275737,1730739040515,-500.0,0.00032876,4]
[341275738,1730739040525,-500.0,0.00032876,4]
[341275739,1730739040534,-500.0,0.00032876,4]
[341275740,1730739040544,-500.0,0.00032876,4]
[341275741,1730739040553,-500.0,0.00032876,4]
[341275742,1730739040562,-500.0,0.00032876,4]
[341275743,1730739040572,-571.04644802,0.00032876,4]
[341275744,1730739040581,-500.0,0.00032876,4]
[341275745,1730739040591,-500.0,0.00032876,4]
[341275746,1730739040600,-500.0,0.00032876,4]
[341275747,1730739040609,-500.0,0.00032876,4]
[341275748,1730739040619,-500.0,0.00032876,4]
[341275749,1730739040628,-500.0,0.00032876,4]
[341275750,1730739040638,-500.0,0.00032876,2]
[341275751,1730739040647,-985.03,0.00032876,4]
[341275752,1730739040656,-500.0,0.00032876,4]
[341275753,1730739040665,-500.0,0.00032876,4]
[341275754,1730739040675,-361.75451346,0.00032876,4]
[341275755,1730739040688,-509.56719063,0.00032876,4]
[341275756,1730739040698,-503.49728131,0.00032876,4]
[341275757,1730739040709,-502.56519857,0.00032876,4]
[341275758,1730739040720,-500.0,0.00032876,4]
[341275759,1730739040729,-201.22,0.00032876,4]
[341275760,1730739040739,-500.0,0.00032876,4]
[341275761,1730739040748,-500.0,0.00032876,4]
[341275762,1730739040759,-500.0,0.00032876,4]
[341275763,1730739040768,-618.52,0.00032876,4]
[341275764,1730739040777,-500.0,0.00032876,4]
[341275765,1730739040787,-500.0,0.00032876,4]
[341275766,1730739040797,-8128.21,0.00032876,3]
[341275767,1730739040806,-523.06084977,0.00032876,4]
[341275768,1730739040816,-500.0,0.00032876,4]
[341275769,1730739040825,-642.39,0.00032876,4]
[341275770,1730739040835,-533.91,0.00032876,4]
[341275771,1730739040848,-500.0,0.00032876,4]
[341275772,1730739040858,-500.0,0.00032876,4]
[341275773,1730739040867,-500.0,0.00032876,4]
[341275774,1730739040877,-668.84,0.00032876,4]
[341275775,1730739040886,-500.0,0.00032876,4]
[341275776,1730739040895,-396.72019535,0.00032876,4]
[341275777,1730739040905,-500.0,0.00032876,4]
[341275778,1730739040914,-500.0,0.00032876,4]
[341275779,1730739040923,-500.0,0.00032876,4]
[341275780,1730739040934,-500.0,0.00032876,4]
[341275781,1730739040943,-505.34082938,0.00032876,4]
[341275782,1730739040953,-500.0,0.00032876,4]
[341275783,1730739040963,-507.85176552,0.00032876,4]
[341275784,1730739040972,-500.0,0.00032876,4]
[341275785,1730739040982,-500.0,0.00032876,4]
[341275786,1730739041000,-203.32,0.00032876,4]
[341275787,1730739041013,-500.0,0.00032876,4]
[341275788,1730739041024,-295.78,0.00032876,4]
[341275789,1730739041033,-500.0,0.00032876,4]
[341275790,1730739041043,-500.0,0.00032876,4]
[341275791,1730739041054,-500.0,0.00032876,4]
[341275792,1730739041063,-281.47810112,0.00032876,4]
[341275793,1730739041073,-500.0,0.00032876,4]
[341275794,1730739041083,-739.39,0.00032876,4]
[341275795,1730739041095,-500.0,0.00032876,4]
[341275796,1730739041104,-500.0,0.00032876,4]
[341275797,1730739041114,-500.0,0.00032876,4]
[341275798,1730739041124,-223.572224,0.00032877,120]
[341275799,1730739041134,-560.0,0.00032889,2]
[341275800,1730739041144,-1008.39,0.00033,3]
[341275801,1730739041154,-1425.78,0.00033,3]
[341275802,1730739041164,-151.0,0.00033101,7]
[341275803,1730739041174,-500.0,0.0003315,4]
[341275804,1730739041183,-500.0,0.0003315,4]
[341275805,1730739041193,-500.0,0.0003315,4]
[341275806,1730739041204,-250.0,0.0003315,4]
[341275807,1730739041213,-516.8,0.0003315,4]
[341275808,1730739041222,-572.53,0.0003315,4]
[341275809,1730739041232,-500.0,0.0003315,4]
[341275810,1730739041241,-1102.27,0.0003315,4]
[341275811,1730739041251,-500.0,0.0003315,4]
[341275812,1730739041261,-500.0,0.0003315,4]
[341275813,1730739041271,-500.0,0.0003315,4]
[341275814,1730739041280,-500.0,0.0003315,4]
[341275815,1730739041290,-500.0,0.0003315,4]
[341275816,1730739041301,-500.0,0.0003315,4]
[341275817,1730739041311,-500.0,0.0003315,4]
[341275818,1730739041320,-500.0,0.0003315,4]
[341275819,1730739041330,-623.2437937,0.0003315,4]
[341275820,1730739041339,-500.0,0.0003315,4]
[341275821,1730739041351,-500.0,0.0003315,4]
[341275822,1730739041361,-500.0,0.0003315,4]
[341275823,1730739041370,-500.0,0.0003315,4]
[341275824,1730739041380,-500.0,0.0003315,2]
[341275825,1730739041389,-985.03,0.0003315,4]
[341275826,1730739041398,-500.0,0.0003315,4]
[341275827,1730739041408,-513.90322414,0.0003315,4]
[341275828,1730739041417,-500.0,0.0003315,4]
[341275829,1730739041427,-500.0,0.0003315,4]
[341275830,1730739041436,-500.0,0.0003315,4]
[341275831,1730739041446,-8128.21,0.0003315,3]
[341275832,1730739041455,-500.0,0.0003315,4]
[341275833,1730739041465,-533.91,0.0003315,4]
[341275834,1730739041475,-500.0,0.0003315,4]
[341275835,1730739041485,-668.84,0.0003315,4]
[341275836,1730739041494,-500.0,0.0003315,4]
[341275837,1730739041505,-500.0,0.0003315,4]
[341275838,1730739041514,-171.46448193,0.0003315,4]
[341275839,1730739041524,-500.0,0.0003315,4]
[341275840,1730739041534,-500.0,0.0003315,4]
[341275841,1730739041543,-500.0,0.0003315,4]
[341275842,1730739041553,-739.39,0.0003315,4]
[341275843,1730739041563,-500.0,0.0003315,4]
[341275844,1730739041572,-380.19,0.0003315,4]
[341275845,1730739041582,-500.0,0.0003315,4]
[341275846,1730739041595,-1000.0,0.00033224,2]
[341275847,1730739041699,-160.0,0.00033269,3]
[341275848,1730739041710,-1008.39,0.00033273,3]
[341275849,1730739041722,-1425.78,0.00033273,3]
[341275850,1730739041731,-7897.17608725,0.000333,2]
[341275851,1730739041741,-126209.65425121,0.00033324,2]
[341275852,1730739041750,-168.35051198,0.00033347,2]
[341275853,1730739041762,-500.0,0.00033347,5]
[341275854,1730739041773,-533.80523467,0.00033347,2]
[341275855,1730739041783,-500.0,0.00033347,5]
[341275856,1730739041793,-160.80511018,0.00033347,5]
[341275857,1730739041802,-501.26498631,0.00033373,5]
[341275858,1730739041811,-600.0,0.00033399,2]
[341275859,1730739041821,-526.0,0.000334,2]
[341275860,1730739041831,-280.89,0.000334,31]
[341275861,1730739041845,-280.89,0.000334,31]
[341275862,1730739041854,-280.89,0.000334,31]
[341275863,1730739041864,-280.89,0.000334,31]
[341275864,1730739041873,-280.89,0.000334,31]
[341275865,1730739041882,-280.89,0.000334,31]
[341275866,1730739041892,-280.89,0.000334,31]
[341275867,1730739041901,-280.89,0.000334,31]
[341275868,1730739041911,-280.89,0.000334,31]
[341275869,1730739041920,-280.89,0.000334,31]
[341275870,1730739041930,-280.89,0.000334,31]
[341275871,1730739041939,-280.89,0.000334,31]
[341275872,1730739041948,-500.0,0.00033424,4]
[341275873,1730739041958,-500.0,0.00033424,4]
[341275874,1730739041968,-250.0,0.00033424,4]
[341275875,1730739041977,-516.8,0.00033424,4]
[341275876,1730739041987,-500.0,0.00033424,4]
[341275877,1730739041996,-1102.27,0.00033424,4]
[341275878,1730739042005,-500.0,0.00033424,4]
[341275879,1730739042015,-500.0,0.00033424,4]